Cogmind - Beta 10.2 @@@ ROGUE MODE // 2021.01.29 @ 18:50:21 Player: WayneKnight Result: Self-destructed Performance ------------- Evolutions (3) 1500 Regions Visited (9) 1800 Robots Destroyed (120) 600 Value Destroyed (3559) 3559 Prototype IDs (35) 700 Alien Tech Used (0) 0 Bonus (909) 909 TOTAL SCORE: 9068 Bonus ------- Follower Combat Kills 673 Aligned with FarCom 300 Friendly Fire -64 Cogmind --------- Core Integrity 519/700 Matter 223/300 Energy 122/150 System Corruption 14% Temperature Cool (2) Movement Flying (34) Location -7/Factory Parts ------- > --- POWER (1) -------- Light Angular Momentum Engine > --- PROPULSION (3) --- Improved VTOL Module Field Propulsion Array > --- UTILITY (7) ------ Large Storage Unit Advanced Sensor Array Advanced Signal Interpreter Hacking Suite Hacking Suite Advanced Hacking Suite System Backup Module > --- WEAPON (2) ------- (None) > --- INVENTORY (10) --- Micro Nuclear Core Improved Flight Unit Field Propulsion Array Large Storage Unit Advanced Weight Redist. System Gravity Neutralizing Apparatus Dynamic Insulation System Precision Rocket Launcher Longsword +1 Peak State ------------ > --- POWER ------------ Light Angular Momentum Engine > --- PROPULSION ------- Carbon-fiber Leg Potential Leg Potential Leg > --- UTILITY ---------- High-capacity Storage Unit High-capacity Storage Unit High-capacity Storage Unit High-capacity Storage Unit Advanced Signal Interpreter Layered Light Armor Plating Insulated Plating > --- WEAPON ----------- Improved Assault Rifle Advanced EMP Blaster > --- INVENTORY -------- Improved Ion Engine Light Treads Light Treads Light Treads Light Treads Improved Treads Improved Flight Unit Improved Flight Unit Improved VTOL Module Large Storage Unit High-capacity Matter Pod Advanced Weight Redist. System Gravity Neutralizing Apparatus Advanced Sensor Array Advanced Signal Interpreter Transmission Jammer Advanced Beam Cannon Improved Assault Rifle Improved Assault Rifle Improved Assault Rifle Missile Launcher Precision Rocket Launcher Precision Rocket Launcher Datajack Axe Chainsword Longsword +1 Spear Deploy-a-Sentry Deploy-a-Sentry Deploy-a-Sentry [Rating: 59] Favorites ----------- Power Deuterium Engine Engine Deuterium Engine Power Core Light Nuclear Core Propulsion Light Treads Treads Light Treads Leg Potential Leg Wheel Wheel Flight Unit Improved VTOL Module Utility High-capacity Storage Unit Device Advanced Sensor Array Storage High-capacity Storage Unit Processor Advanced Signal Interpreter Hackware Advanced Hacking Suite Protection Light Armor Plating Weapon Improved Assault Rifle Energy Gun EM Pulse Gun Energy Cannon Advanced Beam Cannon Ballistic Gun Improved Assault Rifle Ballistic Cannon Flak Cannon Launcher Grenade Launcher Slashing Weapon Longsword +1 Build | -11 -10 -10 -10 -9 -8 -8 -7 -7 -7 ------- Run | Scr Mat Min Exi Min Mat Sto Fac Was Fac Slots Evolved 6 | . . . . . 4 . 2 . . Power . | . . . . . . . . . . Propulsion 1 | . . . . . 1 . . . . Utility 5 | . . . . . 3 . 2 . . Weapon . | . . . . . . . . . . Parts Attached 171 | 3 10 5 1 2 50 18 45 3 34 Power 18 | . 2 1 . . 5 . 4 1 5 Engine 17 | . 2 1 . . 5 . 3 1 5 Core 1 | . . . . . . . 1 . . Reactor . | . . . . . . . . . . Propulsion 52 | 2 2 1 . . 21 6 15 . 5 Treads 26 | 2 1 1 . . 14 5 3 . . Leg 11 | . . . . . 6 . 5 . . Wheel 1 | . 1 . . . . . . . . Hover . | . . . . . . . . . . Flight 14 | . . . . . 1 1 7 . 5 Utility 50 | . 4 . 1 . 11 3 19 2 10 Device 18 | . 1 . . . 1 2 8 . 6 Storage 6 | . 1 . 1 . 1 1 2 . . Processor 3 | . . . . . 1 . 1 . 1 Hackware 3 | . . . . . . . . 1 2 Protection 20 | . 2 . . . 8 . 8 1 1 Artifact . | . . . . . . . . . . Weapon 51 | 1 2 3 . 2 13 9 7 . 14 Energy Gun 4 | . . . . . 4 . . . . Energy Cannon 3 | . . . . . 1 1 1 . . Ballistic Gun 21 | 1 1 3 . 1 7 4 2 . 2 Ballistic Cannon 1 | . . . . . 1 . . . . Launcher 7 | . 1 . . 1 . 2 2 . 1 Special Weapon . | . . . . . . . . . . Impact Weapon . | . . . . . . . . . . Slashing Weapon 15 | . . . . . . 2 2 . 11 Piercing Weapon . | . . . . . . . . . . Special Melee Weapon . | . . . . . . . . . . Unidentified Prototypes 8 | . . . . . 2 4 1 . 1 Parts Lost 13 | . . . . . 11 . 1 . 1 Power 2 | . . . . . 1 . 1 . . Propulsion 3 | . . . . . 3 . . . . Utility 3 | . . . . . 2 . . . 1 Weapon 5 | . . . . . 5 . . . . Highest Loss Streak 8 | . . . . . 8 . 1 . 1 Average Slot Usage (%) 94 | . 97 100 100 100 98 90 94 74 78 Engine 9 | . 14 14 14 14 8 9 6 . 7 Treads 19 | . 27 28 28 28 15 26 9 . . Leg 4 | . . . . . 11 . 8 . . Flight 2 | . . . . . . . 4 23 20 Device 2 | . . . . . . . 9 7 20 Storage 23 | . 14 14 20 28 27 29 25 7 7 Processor 1 | . . . . . 2 . 7 7 8 Protection 8 | . 10 14 7 . 14 6 5 6 . Energy Gun 1 | . . . . . 4 . . . . Energy Cannon 1 | . . . . . . 3 3 . . Ballistic Gun 14 | . 27 27 28 26 8 13 8 . . Ballistic Cannon 1 | . . . . . 4 . . . . Naked Turns . | . . . . . . . . . . Heaviest Build 153 | 11 45 47 76 77 126 149 153 28 31 Greatest Support 75 | 40 40 40 40 40 75 63 75 28 39 Greatest Overweight (x) 2 | . 1 1 1 1 2 2 2 2 2 Average Overweight (x) . | . . 1 1 1 1 1 1 . . Largest Inventory Capacity 36 | 6 12 12 20 20 28 36 36 10 10 Average Capacity 22 | 6 6 12 15 20 27 29 31 10 10 Most Carried 32 | 6 12 12 20 20 28 32 32 10 10 Average Carried 21 | 6 6 11 14 20 25 28 26 9 9 Final Capacity 36 | 6 12 12 20 20 28 36 10 10 10 Final Carried 31 | 6 12 12 20 20 28 31 10 10 10 Class Distribution -------------------- 60% | Hauler-Mutant 13% | Mutant 10% | Commander-Mutant 8% | Scavenger-Mutant 3% | Sprinter Dominant Class ---------------- Mutant | -10/Materials Scavenger-Mutant | -10/Mines Scavenger-Mutant | -10/Exiles Hauler-Mutant | -9/Mines Hauler-Mutant | -8/Materials Hauler-Mutant | -8/Storage Hauler-Mutant | -7/Factory Sprinter | -7/Waste Hacker-Mutant | -7/Factory Resources | -11 -10 -10 -10 -9 -8 -8 -7 -7 -7 ----------- Run | Scr Mat Min Exi Min Mat Sto Fac Was Fac Matter Collected 3732 | 170 571 172 . 149 1210 329 634 . 497 Remotely . | . . . . . . . . . . Salvage Created 3999 | 72 721 250 . 230 1474 575 520 . 157 Parts 255 | . 39 14 . 28 93 30 36 . 15 Haulers Intercepted 3 | . 2 . . . 1 . . . . Recyclers Shooed 3 | . 1 . . . 1 . 1 . . Parts Field Recycled . | . . . . . . . . . . Retrieved Matter . | . . . . . . . . . . Parts Self-Destructed . | . . . . . . . . . . Prevented . | . . . . . . . . . . Kills | -11 -10 -10 -10 -9 -8 -8 -7 -7 -7 ------- Run | Scr Mat Min Exi Min Mat Sto Fac Was Fac Combat Hostiles Destroyed 95 | . 12 9 . 18 33 10 8 . 5 Melee 2 | . . . . . . . 1 . 1 Guns 65 | . 12 7 . 8 28 4 5 . 1 Cannons 13 | . . . . . 5 6 2 . . AOE 15 | . . 2 . 10 . . . . 3 Classes Destroyed 14 | 1 4 1 . 1 3 1 2 . 1 Worker 5 | . . . . . 1 1 2 . 1 Builder 1 | . . . . . . . 1 . . Tunneler 1 | . . . . . . . . . 1 Hauler 3 | . 2 . . . 1 . . . . Recycler 4 | 1 2 . . . 1 . . . . Operator 1 | . . . . . 1 . . . . Watcher 11 | . 3 . . . 4 1 2 . 1 Swarmer 33 | . 3 3 . 16 8 . . . 3 Grunt 37 | . 9 5 . 1 16 6 . . . Duelist 1 | . . . . 1 . . . . . Sentry 13 | . . . . . 9 3 1 . . Hunter 4 | . . . . . . 1 3 . . Programmer 6 | . . . . . . . 4 . 2 Assembled 1 | . . 1 . . . . . . . Best Kill Streak 6 | 1 6 3 . 4 4 3 2 . 5 Combat Bots Only 6 | . 6 3 . 4 4 3 1 . 3 Max Kills in Single Turn 4 | 1 1 2 . 4 1 2 1 . 2 Gunslinging . | . . . . . . . . . . Exploded 4 | . . 2 . 4 . . . . 2 Melee 1 | . . . . . . . 1 . 1 Uniques/NPCs Destroyed . | . . . . . . . . . . Combat | -11 -10 -10 -10 -9 -8 -8 -7 -7 -7 -------- Run | Scr Mat Min Exi Min Mat Sto Fac Was Fac Damage Taken 4496 | . 405 220 . 414 1989 503 608 . 357 Core 591 | . 48 43 . 87 176 56 80 . 101 Absorbed by Shields . | . . . . . . . . . . Core Remaining (%) 61 | 100 . . . 28 . 57 . . . Volleys Fired 324 | 5 66 19 . 28 119 34 44 . 9 Largest 2 | 2 2 2 . 1 2 2 2 . 1 Hottest 107 | 40 40 43 . 30 107 91 91 . 43 Shots Fired 599 | 10 132 35 . 28 234 68 83 . 9 Gun 518 | 10 132 34 . 23 200 53 60 . 6 Cannon 67 | . . . . . 34 15 18 . . Launcher 14 | . . 1 . 5 . . 5 . 3 Special . | . . . . . . . . . . Kinetic 490 | 10 132 34 . 23 172 53 60 . 6 Thermal 77 | . . . . . 44 15 18 . . Explosive 9 | . . 1 . 5 . . . . 3 Electromagnetic 23 | . . . . . 18 . 5 . . Robot Hit Streak 22 | 6 17 8 . 9 20 22 14 . 6 Robot Miss Streak 6 | 2 3 2 . 4 6 3 4 . 3 Penetration Max . | . . . . . . . . . . Secondary Targets 1 | . . . . . 1 . . . . Max Gunslinging Chain 1 | . . . . . 1 . . . . Shots Hit Robots 451 | 7 98 25 . 15 190 50 55 . 11 Core Hits 230 | 2 36 17 . 24 92 23 26 . 10 Critical Hits 10 | . . . . . . 7 3 . . Critical Kills 4 | . . . . . . 3 1 . . Critical Parts Destroyed 5 | . . . . . . 3 2 . . Melee Attacks 30 | . . . . . . 6 2 . 22 Impact . | . . . . . . . . . . Slashing 30 | . . . . . . 6 2 . 22 Piercing . | . . . . . . . . . . Sneak Attacks 2 | . . . . . . 1 . . 1 Combat Hostiles . | . . . . . . . . . . Follow-up Attacks . | . . . . . . . . . . Damage Inflicted 8628 | 93 1205 469 . 818 3117 938 978 . 1010 Guns 5417 | 93 1201 329 . 206 2406 532 585 . 65 Cannons 1143 | . . . . . 583 294 266 . . Explosions 1295 | . . 134 . 608 43 . 55 . 455 Melee 664 | . . . . . . 112 72 . 480 Ramming 109 | . 4 6 . 4 85 . . . 10 Kinetic 5233 | 93 1201 329 . 206 2222 532 585 . 65 Thermal 1224 | . . . . . 664 294 266 . . Explosive 1197 | . . 134 . 608 . . . . 455 Electromagnetic 201 | . . . . . 146 . 55 . . Impact . | . . . . . . . . . . Slashing 664 | . . . . . . 112 72 . 480 Piercing . | . . . . . . . . . . Highest Corruption 17 | . . . . . . . 1 6 17 Average Corruption 8 | . . . . . . . 1 5 9 Corruption Purged 3 | . . . . . . . . . 3 Effects 87 | . . . . . . . 1 3 83 Message Errors 19 | . . . . . . . 1 1 17 Matter Fused 14 | . . . . . . . . . 14 Heat Flow Errors 7 | . . . . . . . . . 7 Energy Discharges 11 | . . . . . . . . 1 10 Parts Rejected 1 | . . . . . . . . . 1 Data Loss (minor) 13 | . . . . . . . . 1 12 Data Loss (major) 2 | . . . . . . . . . 2 Alerts 2 | . . . . . . . . . 2 Misdirections 15 | . . . . . . . . . 15 Targeting Errors 3 | . . . . . . . . . 3 Overload Shots . | . . . . . . . . . . Overflow Damage 128 | . . 5 . . . 82 . . 41 Projectiles . | . . . . . . . . . . Explosions 31 | . . 5 . . . . . . 26 Melee 97 | . . . . . . 82 . . 15 Knockbacks 10 | . . . . . 10 . . . . Impact . | . . . . . . . . . . Kinetic 10 | . . . . . 10 . . . . Secondary . | . . . . . . . . . . Self-Inflicted Damage 103 | . . 38 . 25 36 . . . 4 Shots 3 | . . 1 . 1 1 . . . . Rammed 15 | . 2 1 . 1 8 1 . . 2 Targets Rammed 16 | . 2 1 . 1 9 1 . . 2 Kicked . | . . . . . . . . . . Crushed 1 | . . . . . 1 . . . . Highest Temperature 458 | . 2 12 . . 261 152 458 . 249 Average Temperature 57 | . 2 6 . . 48 58 74 . 94 Received Heat Transfer 1332 | . 204 84 . 18 837 189 . . . Effects 1 | . . . . . . . 1 . . Shutdowns 1 | . . . . . . . 1 . . Siege Activations . | . . . . . . . . . . Robots Corrupted . | . . . . . . . . . . Combat Hostiles . | . . . . . . . . . . Parts Fried . | . . . . . . . . . . Impact Corruptions . | . . . . . . . . . . Robots Melted . | . . . . . . . . . . Combat Hostiles . | . . . . . . . . . . Parts Melted 4 | . . . . . 3 . 1 . . Heat Transferred 2381 | . . . . . 1456 481 444 . . Parts Sabotaged . | . . . . . . . . . . Parts Stolen . | . . . . . . . . . . Parts Stripped . | . . . . . . . . . . Power Chain Reactions 2 | . . . . . 1 . 1 . . Missiles Intercepted . | . . . . . . . . . . Alert | -11 -10 -10 -10 -9 -8 -8 -7 -7 -7 ------- Run | Scr Mat Min Exi Min Mat Sto Fac Was Fac Peak Influence 476 | 5 237 253 . 378 391 273 261 59 476 Initial 120 | . 3 2 . . 42 103 120 14 41 Average 106 | 2 68 59 . 189 112 88 113 35 153 Maximum Alert Level 2 | . 1 1 . 1 1 1 1 . 2 Low Security (%) 82 | 100 93 96 . 72 75 87 91 100 67 Level 1 15 | . 6 3 . 27 24 12 8 . 14 Level 2 1 | . . . . . . . . . 18 Level 3 . | . . . . . . . . . . Level 4 . | . . . . . . . . . . Level 5 . | . . . . . . . . . . High Security . | . . . . . . . . . . Max Security . | . . . . . . . . . . Squads Dispatched 26 | . 3 . . . 9 6 4 . 4 Investigation 8 | . 3 . . . 3 . 1 . 1 Extermination 5 | . . . . . . . 3 . 2 Reinforcement 7 | . . . . . 3 3 . . 1 Assault . | . . . . . . . . . . Garrison 6 | . . . . . 3 3 . . . Intercept . | . . . . . . . . . . Construction Impeded 1 | . . . . . . . . . 1 Haulers Reinforced . | . . . . . . . . . . Stealth | -11 -10 -10 -10 -9 -8 -8 -7 -7 -7 --------- Run | Scr Mat Min Exi Min Mat Sto Fac Was Fac Distress Signals 7 | . . . . . 3 3 1 . . Communications Jammed . | . . . . . . . . . . Distress Signals . | . . . . . . . . . . Times Spotted 159 | . 20 12 . 21 55 17 13 6 15 Peak Tracking Total 7 | . 3 4 . 4 5 3 4 6 7 Tactical Retreats 16 | . 2 2 . 1 4 2 1 . 4 Traps | -11 -10 -10 -10 -9 -8 -8 -7 -7 -7 ------- Run | Scr Mat Min Exi Min Mat Sto Fac Was Fac Traps Triggered 12 | . 1 . . . 3 3 1 . 4 Indirectly . | . . . . . . . . . . Trap Hack Attempts . | . . . . . . . . . . Triggered . | . . . . . . . . . . Disarmed . | . . . . . . . . . . Reprogrammed . | . . . . . . . . . . Reused . | . . . . . . . . . . Traps Extracted . | . . . . . . . . . . Installed . | . . . . . . . . . . Triggered . | . . . . . . . . . . Machines | -11 -10 -10 -10 -9 -8 -8 -7 -7 -7 ---------- Run | Scr Mat Min Exi Min Mat Sto Fac Was Fac Machines Disabled 6 | . . . . . . 1 5 . . Max in Single Turn 5 | . . . . . . 1 5 . . Garrison Access 5 | . . . . . 1 1 . . 3 Machines Sabotaged . | . . . . . . . . . . Garrisons Compromised . | . . . . . . . . . . Overloaded Fab Kills . | . . . . . . . . . . Fab Network Shutdowns 1 | . . . . . . . . . 1 Hacking | -11 -10 -10 -10 -9 -8 -8 -7 -7 -7 --------- Run | Scr Mat Min Exi Min Mat Sto Fac Was Fac Machines Accessed 61 | . 11 . 2 1 14 10 7 . 16 Terminals 39 | . 8 . . 1 8 8 5 . 9 Fabricators 1 | . . . . . . . . . 1 Repair Stations 4 | . 1 . . . 2 1 . . . Recycling Units 6 | . 2 . . . 2 . 1 . 1 Scanalyzers 3 | . . . . . 1 . . . 2 Garrison Access 6 | . . . . . 1 1 1 . 3 Total Hacks 178 | . 47 . 2 5 44 26 15 . 39 Successful 98 | . 24 . 2 1 28 11 6 . 26 Failed 79 | . 22 . . 4 16 15 9 . 13 Catastrophic 6 | . . . . . 1 2 2 . 1 Database Lockouts 1 | . 1 . . . . . . . . Manual 96 | . 28 . 1 5 21 12 11 . 18 Terminals 128 | . 39 . . 5 28 23 11 . 22 Fabricators 2 | . . . . . . . . . 2 Repair Stations 13 | . 5 . . . 6 2 . . . Recycling Units 11 | . 3 . . . 4 . 1 . 3 Scanalyzers 10 | . . . . . 4 . . . 6 Garrison Access 12 | . . . . . 2 1 3 . 6 Terminal Hacks 34 | . 11 . 2 . 11 6 1 . 3 Record 1 | . . . 1 . . . . . . Part Schematic 1 | . . . . . . 1 . . . Robot Analysis 4 | . 1 . . . 3 . . . . Prototype ID Bank 2 | . 1 . . . 1 . . . . Open Door 2 | . . . . . . 2 . . . Fabricator Index 1 | . . . . . . . . . 1 Garrison Index 1 | . . . . . . . . . 1 Alert Level 5 | . 1 . . . 3 1 . . . Unreport Threat 6 | . 2 . . . 3 1 . . . Locate Traps 8 | . 4 . . . 1 1 1 . 1 Zone Layout 2 | . 2 . . . . . . . . EX-Prototype ID Bank 1 | . . . 1 . . . . . . Fabricator Hacks 2 | . . . . . . . . . 2 Load Schematic 1 | . . . . . . . . . 1 Build 1 | . . . . . . . . . 1 Repair Station Hacks 8 | . 1 . . . 5 2 . . . Scan Component 5 | . 1 . . . 3 1 . . . Repair 3 | . . . . . 2 1 . . . Recycling Unit Hacks 4 | . 1 . . . 1 . . . 2 Report Inventory 3 | . 1 . . . 1 . . . 1 Retrieve Components 1 | . . . . . . . . . 1 Scanalyzer 10 | . . . . . 4 . . . 6 Insert Component 5 | . . . . . 2 . . . 3 Analyze 5 | . . . . . 2 . . . 3 Garrison Access Hacks 5 | . . . . . 1 1 . . 3 Seal Access 5 | . . . . . 1 1 . . 3 Unauthorized Hacks 35 | . 11 . . 1 6 2 5 . 10 Terminals 29 | . 9 . . 1 4 2 4 . 9 Track 11 | . 5 . . 1 1 . 1 . 3 Assimilate 2 | . . . . . 1 . . . 1 Botnet 14 | . 3 . . . 2 2 2 . 5 Operators 2 | . 1 . . . . . 1 . . Fabricators . | . . . . . . . . . . Repair Stations . | . . . . . . . . . . Recycling Units 6 | . 2 . . . 2 . 1 . 1 Recyclers 2 | . . . . . . . 1 . 1 Tunnel 4 | . 2 . . . 2 . . . . Scanalyzers . | . . . . . . . . . . Garrison Access . | . . . . . . . . . . Data Cores Recovered . | . . . . . . . . . . Used . | . . . . . . . . . . Hacking Detections 52 | . 8 . . 1 12 9 7 . 15 Full Trace Events 5 | . 2 . . . 1 . 1 . 1 Feedback Events . | . . . . . . . . . . Feedback Blocked . | . . . . . . . . . . Robot Schematics Acquired . | . . . . . . . . . . Robots Built . | . . . . . . . . . . Matter . | . . . . . . . . . . Time . | . . . . . . . . . . Total Robot Build Rating . | . . . . . . . . . . Part Schematics Acquired 6 | . . . . . 2 1 . . 3 Parts Built 2 | . . . . . . . . . 2 Matter 234 | . . . . . . . . . 234 Time 58 | . . . . . . . . . 58 Total Part Build Rating 14 | . . . . . . . . . 14 Parts Repaired 3 | . . . . . 2 1 . . . Time 120 | . . . . . 70 50 . . . Parts Recycled . | . . . . . . . . . . Recycled Matter . | . . . . . . . . . . Retrieved Matter . | . . . . . . . . . . Retrieved Components 3 | . . . . . . . . . 3 Parts Scanalyzed 5 | . . . . . 2 . . . 3 Part Schematics Acquired 5 | . . . . . 2 . . . 3 Parts Damaged . | . . . . . . . . . . Bothacking | -11 -10 -10 -10 -9 -8 -8 -7 -7 -7 ------------ Run | Scr Mat Min Exi Min Mat Sto Fac Was Fac Used RIF Installer . | . . . . . . . . . . Robots Hacked . | . . . . . . . . . . Non-combat . | . . . . . . . . . . Combat . | . . . . . . . . . . Robot Hacks Applied . | . . . . . . . . . . Relay Couplers Released . | . . . . . . . . . . Robots Rewired . | . . . . . . . . . . Allies Hacked . | . . . . . . . . . . Hacks Repelled . | . . . . . . . . . . Allies | -11 -10 -10 -10 -9 -8 -8 -7 -7 -7 -------- Run | Scr Mat Min Exi Min Mat Sto Fac Was Fac Total Allies 17 | . . 1 . 5 . 10 . . 1 Largest Group 10 | . . 1 . 3 3 10 . . 1 Highest-Rated Group 173 | . . 31 . 45 40 173 . . 26 Highest-Rated Ally 31 | . . 31 . 31 16 29 . . 26 Total Orders 4 | . . . . . . . . . 4 STAY 2 | . . . . . . . . . 2 FOLLOW 2 | . . . . . . . . . 2 Ally Attacks 114 | . . 9 . 13 12 80 . . . Total Damage 1664 | . . 187 . 199 158 1120 . . . Kills 28 | . . 5 . 7 1 15 . . . Allies Corrupted 1 | . . . . . . . . . 1 Allies Melted . | . . . . . . . . . . Intel | -11 -10 -10 -10 -9 -8 -8 -7 -7 -7 ------- Run | Scr Mat Min Exi Min Mat Sto Fac Was Fac Robot Analysis Total 4 | . 1 . . . 3 . . . . Derelict Logs Recovered 2 | . . 1 . 1 . . . . . Drone Launches . | . . . . . . . . . . Drone Recoveries . | . . . . . . . . . . Exploration | -11 -10 -10 -10 -9 -8 -8 -7 -7 -7 ------------- Run | Scr Mat Min Exi Min Mat Sto Fac Was Fac Turns Passed 21555 | 45 1854 1577 865 1426 6372 5722 1635 106 1953 Spaces Moved 9595 | 22 774 740 476 667 1806 1458 889 201 2562 Core 41 | . . . . . . . . 6 35 Treads 5571 | 1 685 740 476 667 1264 1458 280 . . Legs 886 | 21 . . . . 542 . 323 . . Wheels 89 | . 89 . . . . . . . . Hover . | . . . . . . . . . . Flight 3008 | . . . . . . . 286 195 2527 Fastest Speed 30 | 120 90 180 180 180 130 180 30 30 30 Average Speed 130 | 121 156 180 180 180 166 190 124 33 34 Slowest Speed 200 | 160 180 180 180 180 200 200 200 150 150 Overloaded Moves . | . . . . . . . . . . Propulsion Burnouts . | . . . . . . . . . . Robots Hopped 5 | . . . . . . . . . 5 Cave-ins Triggered . | . . . . . . . . . . Exploration Rate (%) 73 | 3 94 90 88 99 84 93 25 93 62 Regions Visited 9 Branch Regions 4 Pre-discovered Areas 5 | . 2 . 1 . 2 . . . . Known Exits Taken 2 | . . . 1 . 1 . . . . Unknown Exits Taken 5 | 1 1 1 . 1 . 1 . . . Scrap Searched 2 | . . . . 2 . . . . . Spaces Dug 18 | . . . . . . 4 . . 14 Terrain Destroyed 165 | . . 8 . 37 11 4 67 . 38 Melee 18 | . . . . . . 4 . . 14 Projectile . | . . . . . . . . . . AOE 147 | . . 8 . 37 11 . 67 . 24 Terrain Rammed . | . . . . . . . . . . Walls Destroyed . | . . . . . . . . . . Machines Disabled . | . . . . . . . . . . Actions | -11 -10 -10 -10 -9 -8 -8 -7 -7 -7 --------- Run | Scr Mat Min Exi Min Mat Sto Fac Was Fac Total 18050 | 29 1293 953 485 863 4938 4321 1321 239 3608 Wait 7699 | . 414 178 . 166 2878 2774 308 31 950 Move 9577 | 21 773 739 475 666 1805 1457 889 200 2552 Hop 5 | . . . . . . . . . 5 Pick Up 91 | . 14 4 8 . 37 10 11 1 6 Fast Attach 46 | . 3 . 1 . 18 4 6 1 13 Attach 38 | . . . . . 14 1 7 1 15 Detach 23 | . . . . . 2 2 4 1 14 Swap 87 | 3 7 5 . 2 18 13 32 1 6 Drop 110 | . 14 7 1 . 38 15 18 3 14 Fire 324 | 5 66 19 . 28 119 34 44 . 9 Melee 30 | . . . . . . 6 2 . 22 Ram 2 | . . . . . . . . . 2 Kick . | . . . . . . . . . . Crush 14 | . 2 1 . 1 9 1 . . . Escape Stasis 4 | . . . . . . 4 . . . Rewire . | . . . . . . . . . . Trap . | . . . . . . . . . . Miscellaneous . | . . . . . . . . . . Route ------- -11/Scrapyard -10/Materials (discovered 4 exits: [*Mat x3] / [*Min]) -10/Mines (discovered 3 exits: [*Mat x2] / *Exi) -10/Exiles (discovered 2 exits: *Min x2) -9/Mines (discovered 2 exits: *Mat x2) -8/Materials (discovered 3 exits: *Fac / *Sto x2) -8/Storage (discovered 2 exits: *Fac / [*Rec]) -7/Factory (discovered 2 exits: *Low x2) -7/Waste -7/Factory (discovered 4 exits: *Fac x3 / *Low) History --------- Turn | Location | Event 12 | -11/Scrapyard | Discovered new exit (range 3) 46 | -11/Scrapyard | Entered Materials 62 | -10/Materials | Discovered new exit (range 16) 266 | -10/Materials | Discovered new exit (range 12) 313 | -10/Materials | Build established: Mutant 431 | -10/Materials | Central database locked down 731 | -10/Materials | Discovered new exit (range 5) 1357 | -10/Materials | Discovered new exit (range 14) 1900 | -10/Materials | Entered Mines 1906 | -10/Mines | Met a Derelict bent on vengeance 1949 | -10/Mines | Received a Mining Laser from a helpful Derelict 2021 | -10/Mines | Discovered new exit (range 7) 2206 | -10/Mines | Discovered new exit (range 6) 2226 | -10/Mines | Excavation squad dispatched 2226 | -10/Mines | A large section of the Mines collapsed 2403 | -10/Mines | Build established: Scavenger-Mutant 2695 | -10/Mines | Deemed a non-threat by the Exiles lab entrance 2695 | -10/Mines | Discovered new exit (range 5) 3056 | -10/Mines | Received a Rocket Launcher from a helpful Derelict 3477 | -10/Mines | Entered Exiles 3478 | -10/Exiles | Identified exit to Mines 3524 | -10/Exiles | Met 8R-AWN 3553 | -10/Exiles | Met EX-HEX 3636 | -10/Exiles | Met EX-DEC 3675 | -10/Exiles | Visited The Gauntlet 3863 | -10/Exiles | Learned location of Zion (-6) 4014 | -10/Exiles | Met EX-BIN 4081 | -10/Exiles | Aligned with FarCom system 4083 | -10/Exiles | Given EX-Vault access code 4128 | -10/Exiles | Opened EX-Vault 4144 | -10/Exiles | Found Longsword +1 4154 | -10/Exiles | Found Deploy-a-Sentry 4157 | -10/Exiles | Found Deploy-a-Sentry 4161 | -10/Exiles | Found Deploy-a-Sentry 4168 | -10/Exiles | Found Potential Leg 4170 | -10/Exiles | Found Potential Leg 4207 | -10/Exiles | Warned to stay clear of 0b10 Research branches 4225 | -10/Exiles | Build established: Hauler-Mutant 4342 | -10/Exiles | Stole three prototypes: Potential Leg, Longsword +1, Deploy-a-Sentry 4342 | -10/Exiles | Entered Mines 4778 | -9/Mines | Core integrity fell below 50% 4986 | -9/Mines | Discovered new exit (range 8) 5256 | -9/Mines | Discovered new exit (range 6) 5508 | -9/Mines | Assisted by bots powering up and referring to "LRC-V3" 5768 | -9/Mines | Entered Materials 5768 | -8/Materials | Accompanied by 3 allies 5768 | -8/Materials | Evolved 4 slots: Propulsion x1, Utility x3 5769 | -8/Materials | Identified exit to Storage 6140 | -8/Materials | Lost 8 parts (1p3n1u3w) 6234 | -8/Materials | Discovered exit to Storage (range 6) 7376 | -8/Materials | Garrison activated, responded to threat 9949 | -8/Materials | Discovered new exit (range 15) 10467 | -8/Materials | Repaired Imp. Treads 10507 | -8/Materials | Repaired Deuterium Engine 12140 | -8/Materials | Entered Storage 14286 | -8/Storage | Assisted by bots powering up and referring to "LRC-V3" 14575 | -8/Storage | Build established: Commander-Mutant 16125 | -8/Storage | Repaired Lgt. Angular Momentum Engine 16700 | -8/Storage | Garrison activated, responded to threat 16788 | -8/Storage | Build established: Hauler-Mutant 17373 | -8/Storage | Used back door to open Recycling access 17373 | -8/Storage | Discovered new exit (range 5) 17812 | -8/Storage | Discovered new exit (range 16) 17862 | -8/Storage | Entered Factory 17862 | -7/Factory | Evolved 2 slots: Utility x2 17864 | -7/Factory | FarCom data flow suspended 18126 | -7/Factory | Discovered new exit (range 15) 18161 | -7/Factory | Identified exit to Lower Caves 18800 | -7/Factory | Discovered exit to Lower Caves (range 6) 19497 | -7/Factory | Sucked down chute 19497 | -7/Factory | Entered Waste 19512 | -7/Waste | EMP discharged 19516 | -7/Waste | Spotted C-40 Crusher 19533 | -7/Waste | Spotted C-40 Crusher 19539 | -7/Waste | Spotted C-40 Crusher 19539 | -7/Waste | Spotted C-40 Crusher 19547 | -7/Waste | Spotted C-40 Crusher 19592 | -7/Waste | Discovered new exit (range 16) 19592 | -7/Waste | Spotted C-40 Crusher 19602 | -7/Waste | Identified exit to Factory 19603 | -7/Waste | Entered Factory 20150 | -7/Factory | Discovered new exit (range 5) 20152 | -7/Factory | Identified exit to Factory 20501 | -7/Factory | Discovered exit to Factory (range 7) 20714 | -7/Factory | Discovered exit to Factory (range 10) 20720 | -7/Factory | System corruption reached 10% 20913 | -7/Factory | Local fabrication network quarantined 20949 | -7/Factory | Fabricated Field Propulsion Array? 21251 | -7/Factory | Build established: Hacker-Mutant 21482 | -7/Factory | Discovered exit to Lower Caves (range 12) 21556 | -7/Factory | Self-destructed Last Messages --------------- 21492_ System corrupted: IFF burst signal emitted. 21498_ System Backup Module purges 1% of system corruption (15%). 21502_ Connecting with Terminal... >>Trojan(Track) Trojan loaded successfully. Testing... Tracking enabled and active. >>Trojan(Botnet) Trojan loaded successfully. Testing... Terminal linked with 4 systems. Awaiting botnet instructions. 21518_ System corrupted: Heat flow error (+189). 21533_ K0UNUJTQK:SO#RHX4ZDV M:Y RUCS/ 21533_ Connecting with Garrison Access... >>Seal Access door sealed. 21535_ K-01 Serf cleans the Neutrino Reactor. 21552_ System corrupted: Energy discharge (-42). 21553_ System Backup Module purges 1% of system corruption (14%). Map ----- +----------------------------------------------------+ | #???# """" ???????#####?###?????? | | ###########???# """" #??????# ????? | | ??????????????# ????+ """ """ ??? | | #########?????# """ ######### """ """ """ | | ! #?????# """ # """ """ """ | | #?????# """ # | | #?????# # """ """ """ | | #?????# """" """ # """ """ """ | | #?????# """" """ # """ """ """ | | [ #?????# """" """ # | | #?????# # ! | | ! #?????# """ ###+########### | | +########?????# "F "" """ #??????? | | #????????????# """"" """ #??????? | | #????????????# """"" ######## | | #????????????# # | | #????????????# # " !!! | | #????????????### ################# # "" !!! | | ##??????######## #??#/ ! ! ??# # G !! | | ######## # #?#Y m # # "" | | ^ + "" # #????? "" != + / " """ | | ^ # ""S # #?????R"" == # # """ | | """ # "" # #?????"" ??# # """ | | """ + g # ##############??# # * | | """ # g ! # #???## ######+########## | | ######## #####@#???# ! Y #? | | #???# ##### """"" #? | | ####################???# + ""T"" #? | | ##??????????????????????####### #? | | ??????????????????????????????# """ """ #? | | ??????????????????????????????# """ """ ! #? | | ??????????????????????????????# """ """ ! #? | | ??????????????????????????????###################? | | | | | | | | | | | | | | | | | | | | | | | | | | | | | | | | | | | +----------------------------------------------------+ Best States ------------- Heat Dissipation 34 Energy Generation 18 Energy Capacity 300 Matter Stores 300 Matter Capacity 300 Sight Range 22 Robot Scan Range 20 Terrain Scan Density 10 Jamming Range 8 Additional Mass Support 12 Armor Coverage 600 Resistance: KI 20 Resistance: EM 15 Weapon Shielding 33 Evasion (%) 64 Targeting Accuracy 8 Recoil Reduction 3 Offensive Hacking 34 Item Schematics ----------------- Adv. Signal Interpreter | -8/Materials | Scanalyzed Hcp. Storage Unit | -8/Materials | Scanalyzed Gravmag Array | -8/Storage | Hacked Field Propulsion Array | -7/Factory | Scanalyzed Gravity Neutralizing Apparatus | -7/Factory | Scanalyzed Lrg. Storage Unit | -7/Factory | Scanalyzed Robot Schematics ------------------ None Fabricated ------------ Field Propulsion Array | x2 | -7/Factory Alien Tech Used ----------------- None Achievements -------------- None Challenges ------------ None Game ------ Seed NuclearCannonScanner Manual? 0 Play Time 02:12:12 Cumulative 256.2 hours Start 2021.01.28 @ 03:13:25 End 2021.01.29 @ 18:50:21 Sessions 4 Manual Loads 0 Difficulty Rogue Special Mode None Game No. 178 Rogue 178 Adventurer 0 Explorer 0 Win Type - Total 6 Types 6/0/0/0/0/0/0/0/0 Lore% 58 Gallery% 65 Achievement% 49 Wizard Run 0 Options --------- ASCII 1 Keyboard 1 Movement Arrows Keybinds 0 Fullscreen 1 Font 24/Smallcaps Map View 76x50 Tactical HUD 1 Map Filters NONE Filters NONE Steam 1 RUN: f7e3d81a-60fd-46e6-91a6-901eb49dd7bd